Cogmind - Beta 10.2 *** ADVENTURER MODE // 2021.11.22 @ 19:08:11 Player: Anthony Result: Destroyed by G-47 Trooper with Particle Gun Performance ------------- Evolutions (1) 500 Regions Visited (3) 600 Robots Destroyed (16) 80 Value Destroyed (429) 429 Prototype IDs (0) 0 Alien Tech Used (0) 0 Bonus (0) 0 TOTAL SCORE: 1609 Bonus ------- None Cogmind --------- Core Integrity 0/400 Matter 31/300 Energy 100/100 System Corruption 0% Temperature Cool (15) Movement Core (150) Ox2 Location -9/Mines Parts ------- > --- POWER (1) -------- (None) > --- PROPULSION (2) --- (None) > --- UTILITY (4) ------ Medium Storage Unit Improved Targeting Computer > --- WEAPON (2) ------- (None) > --- INVENTORY (8) ---- Improved EM Shotgun Improved EM Shotgun Assault Rifle Assault Rifle Peak State ------------ > --- POWER ------------ Light Ion Engine > --- PROPULSION ------- Improved Aluminum Leg Improved Aluminum Leg > --- UTILITY ---------- Small Storage Unit Improved Targeting Computer Hardened Light Armor Plating > --- WEAPON ----------- Improved Light Cannon Improved Light Cannon > --- INVENTORY -------- Ion Engine Medium Storage Unit Improved EM Shotgun Improved EM Shotgun Assault Rifle Assault Rifle [Rating: 15] Favorites ----------- Power Ion Engine Engine Ion Engine Propulsion Improved Aluminum Leg Leg Improved Aluminum Leg Utility Hardened Light Armor Plating Storage Small Storage Unit Processor Improved Targeting Computer Protection Hardened Light Armor Plating Weapon Assault Rifle Ballistic Gun Assault Rifle Ballistic Cannon Improved Light Cannon Special Weapon Welding Torch Build | -11 -10 -9 -9 ------- Run | Scr Mat Mat Min Slots Evolved 2 | . . 2 . Power . | . . . . Propulsion . | . . . . Utility 2 | . . 2 . Weapon . | . . . . Parts Attached 17 | 6 5 6 . Power 3 | 1 . 2 . Engine 3 | 1 . 2 . Core . | . . . . Reactor . | . . . . Propulsion 4 | 2 2 . . Treads . | . . . . Leg 4 | 2 2 . . Wheel . | . . . . Hover . | . . . . Flight . | . . . . Utility 4 | 1 1 2 . Device . | . . . . Storage 2 | 1 . 1 . Processor 1 | . . 1 . Hackware . | . . . . Protection 1 | . 1 . . Artifact . | . . . . Weapon 6 | 2 2 2 . Energy Gun . | . . . . Energy Cannon . | . . . . Ballistic Gun 3 | 2 1 . . Ballistic Cannon 2 | . . 2 . Launcher . | . . . . Special Weapon 1 | . 1 . . Impact Weapon . | . . . . Slashing Weapon . | . . . . Piercing Weapon . | . . . . Special Melee Weapon . | . . . . Unidentified Prototypes . | . . . . Parts Lost 7 | . . 2 5 Power 2 | . . 1 1 Propulsion 2 | . . . 2 Utility 1 | . . 1 . Weapon 2 | . . . 2 Highest Loss Streak 7 | . . 2 7 Average Slot Usage (%) 85 | . 98 84 34 Engine 11 | . 14 11 5 Leg 22 | . 28 22 . Storage 12 | . 14 11 11 Processor 5 | . . 8 11 Protection 10 | . 12 10 . Ballistic Gun 12 | . 27 5 . Ballistic Cannon 9 | . . 16 7 Naked Turns . | . . . . Heaviest Build 26 | 13 18 26 21 Greatest Support 26 | 20 26 26 3 Greatest Overweight (x) 6 | . . . 6 Average Overweight (x) . | . . . 6 Largest Inventory Capacity 8 | 6 6 8 8 Average Capacity 6 | 5 6 6 8 Most Carried 6 | 4 4 6 4 Average Carried 3 | 1 2 4 4 Final Capacity 8 | 6 6 8 8 Final Carried 4 | 1 4 4 4 Class Distribution -------------------- 100% | Mutant Dominant Class ---------------- Mutant | -10/Materials Mutant | -9/Materials Mutant | -9/Mines Resources | -11 -10 -9 -9 ----------- Run | Scr Mat Mat Min Matter Collected 383 | 61 . 322 . Remotely . | . . . . Salvage Created 359 | . 16 343 . Parts 24 | . 3 21 . Haulers Intercepted 1 | . . 1 . Recyclers Shooed . | . . . . Parts Field Recycled . | . . . . Retrieved Matter . | . . . . Parts Self-Destructed . | . . . . Prevented . | . . . . Kills | -11 -10 -9 -9 ------- Run | Scr Mat Mat Min Combat Hostiles Destroyed 12 | . 1 11 . Guns 3 | . 1 2 . Cannons 9 | . . 9 . Classes Destroyed 7 | . 1 6 . Worker 1 | . . 1 . Hauler 1 | . . 1 . Watcher 2 | . . 2 . Swarmer 3 | . 1 2 . Grunt 5 | . . 5 . Brawler 1 | . . 1 . Sentry 3 | . . 3 . Best Kill Streak 3 | . 1 3 . Combat Bots Only 2 | . 1 2 . Max Kills in Single Turn 1 | . 1 1 . Gunslinging . | . . . . Exploded . | . . . . Melee . | . . . . Uniques/NPCs Destroyed . | . . . . Combat | -11 -10 -9 -9 -------- Run | Scr Mat Mat Min Damage Taken 1521 | . 81 790 650 Core 418 | . 13 102 303 Absorbed by Shields . | . . . . Core Remaining (%) 97 | 100 94 . . Volleys Fired 43 | . 8 35 . Largest 2 | . 2 2 . Hottest 78 | . 40 78 . Shots Fired 86 | . 16 70 . Gun 24 | . 16 8 . Cannon 62 | . . 62 . Launcher . | . . . . Special . | . . . . Kinetic 86 | . 16 70 . Thermal . | . . . . Explosive . | . . . . Electromagnetic . | . . . . Robot Hit Streak 18 | . 3 18 . Robot Miss Streak 4 | . 4 3 . Penetration Max . | . . . . Secondary Targets 1 | . 1 . . Max Gunslinging Chain 1 | . 1 . . Shots Hit Robots 62 | . 8 54 . Core Hits 21 | . 2 19 . Critical Hits 1 | . . 1 . Critical Kills . | . . . . Critical Parts Destroyed 1 | . . 1 . Melee Attacks . | . . . . Impact . | . . . . Slashing . | . . . . Piercing . | . . . . Sneak Attacks . | . . . . Combat Hostiles . | . . . . Follow-up Attacks . | . . . . Damage Inflicted 1105 | . 96 1009 . Guns 195 | . 96 99 . Cannons 907 | . . 907 . Explosions . | . . . . Melee . | . . . . Ramming 3 | . . 3 . Kinetic 1102 | . 96 1006 . Thermal . | . . . . Explosive . | . . . . Electromagnetic . | . . . . Impact . | . . . . Slashing . | . . . . Piercing . | . . . . Highest Corruption . | . . . . Average Corruption . | . . . . Corruption Purged . | . . . . Overload Shots . | . . . . Overflow Damage 5 | . . 5 . Projectiles 5 | . . 5 . Explosions . | . . . . Melee . | . . . . Knockbacks 7 | . . 7 . Impact . | . . . . Kinetic 7 | . . 7 . Secondary . | . . . . Self-Inflicted Damage 1 | . . 1 . Shots . | . . . . Rammed 1 | . . 1 . Targets Rammed 1 | . . 1 . Kicked . | . . . . Crushed . | . . . . Highest Temperature 251 | . . 251 . Average Temperature 76 | . . 76 . Received Heat Transfer 774 | . 6 297 471 Effects 1 | . . 1 . Energy Bleed 1 | . . 1 . Siege Activations . | . . . . Robots Corrupted . | . . . . Combat Hostiles . | . . . . Parts Fried . | . . . . Impact Corruptions . | . . . . Robots Melted . | . . . . Combat Hostiles . | . . . . Parts Melted . | . . . . Heat Transferred . | . . . . Parts Sabotaged . | . . . . Parts Stolen . | . . . . Parts Stripped . | . . . . Power Chain Reactions . | . . . . Missiles Intercepted . | . . . . Alert | -11 -10 -9 -9 ------- Run | Scr Mat Mat Min Peak Influence 368 | . 35 368 55 Initial 55 | . . 12 55 Average 87 | . 1 155 18 Maximum Alert Level 1 | . . 1 . Low Security (%) 82 | 100 100 67 100 Level 1 17 | . . 32 . Level 2 . | . . . . Level 3 . | . . . . Level 4 . | . . . . Level 5 . | . . . . High Security . | . . . . Max Security . | . . . . Squads Dispatched 1 | . . 1 . Investigation . | . . . . Extermination . | . . . . Reinforcement 1 | . . 1 . Assault . | . . . . Garrison . | . . . . Intercept . | . . . . Construction Impeded . | . . . . Haulers Reinforced . | . . . . Stealth | -11 -10 -9 -9 --------- Run | Scr Mat Mat Min Distress Signals 2 | . 1 1 . Communications Jammed . | . . . . Distress Signals . | . . . . Times Spotted 30 | . 8 19 3 Peak Tracking Total 6 | . 6 5 3 Tactical Retreats . | . . . . Traps | -11 -10 -9 -9 ------- Run | Scr Mat Mat Min Traps Triggered . | . . . . Indirectly . | . . . . Trap Hack Attempts . | . . . . Triggered . | . . . . Disarmed . | . . . . Reprogrammed . | . . . . Reused . | . . . . Traps Extracted . | . . . . Installed . | . . . . Triggered . | . . . . Machines | -11 -10 -9 -9 ---------- Run | Scr Mat Mat Min Machines Disabled 1 | . . 1 . Max in Single Turn 1 | . . 1 . Machines Sabotaged . | . . . . Garrisons Compromised . | . . . . Overloaded Fab Kills . | . . . . Fab Network Shutdowns . | . . . . Hacking | -11 -10 -9 -9 --------- Run | Scr Mat Mat Min Machines Accessed . | . . . . Terminals . | . . . . Fabricators . | . . . . Repair Stations . | . . . . Recycling Units . | . . . . Scanalyzers . | . . . . Garrison Access . | . . . . Total Hacks . | . . . . Successful . | . . . . Failed . | . . . . Catastrophic . | . . . . Database Lockouts . | . . . . Manual . | . . . . Terminals . | . . . . Fabricators . | . . . . Repair Stations . | . . . . Recycling Units . | . . . . Scanalyzers . | . . . . Garrison Access . | . . . . Terminal Hacks . | . . . . Fabricator Hacks . | . . . . Repair Station Hacks . | . . . . Recycling Unit Hacks . | . . . . Scanalyzer . | . . . . Garrison Access Hacks . | . . . . Unauthorized Hacks . | . . . . Terminals . | . . . . Fabricators . | . . . . Repair Stations . | . . . . Recycling Units . | . . . . Scanalyzers . | . . . . Garrison Access . | . . . . Data Cores Recovered . | . . . . Used . | . . . . Hacking Detections . | . . . . Full Trace Events . | . . . . Feedback Events . | . . . . Feedback Blocked . | . . . . Robot Schematics Acquired . | . . . . Robots Built . | . . . . Matter . | . . . . Time . | . . . . Total Robot Build Rating . | . . . . Part Schematics Acquired . | . . . . Parts Built . | . . . . Matter . | . . . . Time . | . . . . Total Part Build Rating . | . . . . Parts Repaired . | . . . . Time . | . . . . Parts Recycled . | . . . . Recycled Matter . | . . . . Retrieved Matter . | . . . . Retrieved Components . | . . . . Parts Scanalyzed . | . . . . Part Schematics Acquired . | . . . . Parts Damaged . | . . . . Bothacking | -11 -10 -9 -9 ------------ Run | Scr Mat Mat Min Used RIF Installer . | . . . . Robots Hacked . | . . . . Non-combat . | . . . . Combat . | . . . . Robot Hacks Applied . | . . . . Relay Couplers Released . | . . . . Robots Rewired . | . . . . Allies Hacked . | . . . . Hacks Repelled . | . . . . Allies | -11 -10 -9 -9 -------- Run | Scr Mat Mat Min Total Allies . | . . . . Largest Group . | . . . . Highest-Rated Group . | . . . . Highest-Rated Ally . | . . . . Total Orders . | . . . . Ally Attacks . | . . . . Total Damage . | . . . . Kills . | . . . . Allies Corrupted . | . . . . Allies Melted . | . . . . Intel | -11 -10 -9 -9 ------- Run | Scr Mat Mat Min Robot Analysis Total . | . . . . Derelict Logs Recovered . | . . . . Drone Launches . | . . . . Drone Recoveries . | . . . . Exploration | -11 -10 -9 -9 ------------- Run | Scr Mat Mat Min Turns Passed 780 | 44 255 427 54 Spaces Moved 445 | 38 180 226 1 Core 20 | 19 . . 1 Treads . | . . . . Legs 425 | 19 180 226 . Wheels . | . . . . Hover . | . . . . Flight . | . . . . Fastest Speed 50 | 50 120 120 350 Average Speed 117 | 85 120 120 350 Slowest Speed 350 | 120 120 120 350 Overloaded Moves . | . . . . Propulsion Burnouts . | . . . . Robots Hopped . | . . . . Cave-ins Triggered . | . . . . Exploration Rate (%) 15 | 4 29 25 4 Regions Visited 3 Branch Regions 1 Pre-discovered Areas . | . . . . Known Exits Taken . | . . . . Unknown Exits Taken 3 | 1 1 1 . Scrap Searched . | . . . . Spaces Dug . | . . . . Terrain Destroyed 2 | . . 2 . Melee . | . . . . Projectile 2 | . . 2 . AOE . | . . . . Terrain Rammed . | . . . . Walls Destroyed . | . . . . Machines Disabled . | . . . . Actions | -11 -10 -9 -9 --------- Run | Scr Mat Mat Min Total 612 | 48 202 310 52 Wait 88 | . . 37 51 Move 442 | 37 179 225 1 Hop . | . . . . Pick Up 16 | 5 7 4 . Fast Attach 2 | 2 . . . Attach 7 | 4 1 2 . Detach . | . . . . Swap 8 | . 4 4 . Drop 5 | . 3 2 . Fire 43 | . 8 35 . Melee . | . . . . Ram . | . . . . Kick 1 | . . 1 . Crush . | . . . . Escape Stasis . | . . . . Rewire . | . . . . Trap . | . . . . Miscellaneous . | . . . . Route ------- -11/Scrapyard -10/Materials -9/Materials (discovered 3 exits: [*Min x2] / [*Sto]) -9/Mines History --------- Turn | Location | Event 15 | -11/Scrapyard | Discovered new exit (range 16) 45 | -11/Scrapyard | Entered Materials 280 | -10/Materials | Discovered new exit (range 15) 300 | -10/Materials | Build established: Mutant 300 | -10/Materials | Entered another Materials area 300 | -9/Materials | Evolved 2 slots: Utility x2 374 | -9/Materials | Discovered new exit (range 15) 546 | -9/Materials | Discovered new exit (range 14) 630 | -9/Materials | Discovered new exit (range 16) 727 | -9/Materials | Entered Mines 756 | -9/Mines | Core integrity fell below 50% 770 | -9/Mines | Core integrity fell below 20% 781 | -9/Mines | Destroyed by G-47 Trooper with Particle Gun Last Messages --------------- 00682_ Lgt. Ion Engine destroyed. 00683_ K-01 Serf cleans the Matter Pump. 00698_ S-10 Pest destroyed. 00702_ Hrd. Light Armor Plating destroyed. 00704_ S-10 Pest knocked back. 00704_ Matter Pump disabled. 00707_ Acquired 1 matter. 00712_ Slammed into K-01 Serf. 00717_ R-06 Scavenger collects Flight Unit. 00724_ K-01 Serf cleans the Machine. 00725_ O-16 Technician: "IFF HANDSHAKE FAILED. SECURING TERMINAL." 00725_ O-16 Technician uses terminal to summon reinforcements. 00725_ ALERT: Hostiles spotted, dispatching reinforcements to Terminal M008. 00725_ O-16 Technician locks terminal. LOCATION=UNKNOWN GOAL=ESCAPE 00728_ Imp. Aluminum Leg destroyed. 00749_ Imp. Light Cannon destroyed. 00751_ Ion Engine destroyed. Map ----- +----------------------------------------------------+ | ???????????????????????????????????????? | | ???????????????????????????????????????? | | ???????????????????????????????????????? | | ???????????????????????????????????????? | | ???????????????????????????????????????? | | ???????????????????????????????????????? | | ???????????????????????????????????????? | | ???????????????????????????????????????? | | ???????????????????????????????????????? | | ???????????????????????????????????????? | | ???????????????????????????????????????? | | ???????????????????????????????????????? | | ???????????????????????????????????????? | | ???????????????????????#???????????????? | | ???????????????????????# ??????????????? | | ???????????????????????# ??????????????? | | ???????????????????????# ??????????????? | | ???????????????????????# ??????????????? | | ???????????????????????# ??????????????? | | ???????????????????????# ??????????????? | | ???????????????????????# ??????????????? | | ??????????????????????## ##????????????? | | ??????????????????????# ##???????????? | | ??????????????????????# #####???????? | | ??????????????????????# ##??????? | | ??????????????????????# @ #??????? | | ??????????????????????# #??????? | | ??????????????????????## ggg #??????? | | ???????????????????????### #??????? | | ?????????????????????????## #??????? | | ??????????????????????????? #?????? | | ??????????????????????????? #?????? | | ??????????????????????????? #?????? | | ???????????????????????????# ##?????? | | ????????????????????????????# ##??????? | | ?????????????????????????????###???????? | | ???????????????????????????????????????? | | ???????????????????????????????????????? | | ???????????????????????????????????????? | | ???????????????????????????????????????? | | ???????????????????????????????????????? | | ???????????????????????????????????????? | | ???????????????????????????????????????? | | ???????????????????????????????????????? | | ???????????????????????????????????????? | | ???????????????????????????????????????? | | ???????????????????????????????????????? | | ???????????????????????????????????????? | | ???????????????????????????????????????? | | ???????????????????????????????????????? | +----------------------------------------------------+ Best States ------------- Heat Dissipation 28 Energy Generation 10 Energy Capacity 250 Matter Stores 187 Matter Capacity 300 Sight Range 16 Terrain Scan Density 10 Armor Coverage 150 Resistance: KI 20 Resistance: TH 20 Resistance: EX 20 Resistance: EM 20 Resistance: I 20 Resistance: S 20 Resistance: P 20 Evasion (%) 50 Targeting Accuracy 6 Offensive Hacking 10 Item Schematics ----------------- None Robot Schematics ------------------ None Fabricated ------------ Nothing Alien Tech Used ----------------- None Achievements -------------- None Challenges ------------ None Game ------ Seed TitaniumOverloadSteel Manual? 0 Play Time 00:08:46 Cumulative 14.8 hours Start 2021.11.22 @ 18:59:31 End 2021.11.22 @ 19:08:11 Sessions 1 Manual Loads 0 Difficulty Adventurer Special Mode None Game No. 26 Rogue 18 Adventurer 8 Explorer 0 Win Type - Total 0 Types 0/0/0/0/0/0/0/0/0 Lore% 11 Gallery% 20 Achievement% 14 Wizard Run 0 Options --------- ASCII 0 Keyboard 0 Movement Mouse Keybinds 0 Fullscreen 1 Font 18/SmallcapsGlow Map View 76x50 Tactical HUD 1 Map Filters NONE Filters NONE Steam 1 RUN: 90d5d0bd-bbdb-43c5-94f8-9fb36fe21786